[Event "14th Chennai GM Open 2023"]
[Site "Chennai"]
[Date "2024.01.04"]
[Round "7.13"]
[White "Sriram Adarsh Uppala"]
[Black "Manish Anto Cristiano F"]
[Result "1/2-1/2"]
[ECO "D12"]
[WhiteElo "1900"]
[BlackElo "2349"]
[Annotator "RC"]
[PlyCount "60"]
[EventDate "2023.12.31"]
[EventType "swiss"]
[EventCountry "IND"]
[SourceTitle "playchess.com"]
[Source "ChessBase"]
[SourceQuality "1"]
[TimeControl "5400+30"]

1. Nf3 {[%emt 0:00:03]} Nf6 {[%emt 0:00:25]} 2. b3 {[%emt 0:00:07]} d5 {[%emt 0:01:32]} 3. e3 {[%emt 0:00:16]} Bf5 {[%emt 0:00:33]} 4. Bb2 {[%emt 0:00:11]} h6 {[%emt 0:00:50]} 5. c4 {[%emt 0:03:07]} e6 {[%emt 0:00:17]} 6. Nc3 {[%emt 0:00:39]} c6 {[%emt 0:03:14]} 7. d4 {[%emt 0:01:21]} Nbd7 {[%emt 0:00:24]} 8. Bd3 {[%emt 0:01:56]} Bxd3 {[%emt 0:02:22]} 9. Qxd3 {[%emt 0:00:07]} Bd6 {[%emt 0:02:39]} 10. O-O {[%emt 0:00:12]} O-O {[%emt 0:00:24]} 11. e4 {[%emt 0:03:57]} dxe4 {[%emt 0:02:47]} 12. Nxe4 {[%emt 0:00:27]} Nxe4 {[%emt 0:00:38]} 13. Qxe4 {[%emt 0:00:07]} Qe7 {[%emt 0:03:01]} 14. Rad1 {[%emt 0:06:33]} Nf6 {[%emt 0:07:58]} 15. Qh4 {[%emt 0:16:13]} Nh7 {[%emt 0:09:48]} 16. d5 {[%emt 0:02:14]} Qxh4 {[%emt 0:08:02]} 17. Nxh4 {[%emt 0:00:09]} cxd5 {[%emt 0:01:34]} 18. cxd5 {[%emt 0:00:13]} Be7 {[%emt 0:00:34]} 19. Nf3 {[%emt 0:00:05]} exd5 {[%emt 0:00:24]} 20. Rxd5 {[%emt 0:00:14]} Rfd8 {[%emt 0:04:36]} 21. Rfd1 {[%emt 0:01:02]} Rxd5 {[%emt 0:04:34]} 22. Rxd5 {[%emt 0:00:08]} Nf6 {[%emt 0:00:26]} 23. Rd2 {[%emt 0:05:17]} Rc8 {[%emt 0:05:24]} 24. Re2 {[%emt 0:00:45]} Kf8 {[%emt 0:01:55]} 25. g3 {[%emt 0:00:23]} Rc7 {[%emt 0:02:26]} 26. Nd4 {[%emt 0:00:27]} Rd7 {[%emt 0:05:27]} 27. Nf5 {[%emt 0:00:26]} Bd8 {[%emt 0:00:31]} 28. h3 {[%emt 0:00:46]} h5 {[%emt 0:00:24]} 29. Rc2 {[%emt 0:01:27]} g6 {[%emt 0:04:56]} 30. Ne3 {[%emt 0:06:54]} Nd5 {[%emt 0:06:34]} 1/2-1/2

[Event "14th Chennai GM Open 2023"]
[Site "Chennai"]
[Date "2024.01.04"]
[Round "7.14"]
[White "Gochelashvili, David"]
[Black "Balkishan, A.."]
[Result "0-1"]
[ECO "B22"]
[WhiteElo "2287"]
[BlackElo "1855"]
[Annotator "RC"]
[PlyCount "122"]
[EventDate "2023.12.31"]
[EventType "swiss"]
[EventCountry "IND"]
[SourceTitle "playchess.com"]
[Source "ChessBase"]
[SourceQuality "1"]
[TimeControl "5400+30"]

1. e4 {[%emt 0:00:02]} c5 {[%emt 0:06:26]} 2. Nf3 {[%emt 0:00:03]} e6 {[%emt 0:00:15]} 3. c3 {[%emt 0:01:22]} d5 {[%emt 0:00:05]} 4. exd5 {[%emt 0:00:04]} exd5 {[%emt 0:00:13]} 5. d4 {[%emt 0:00:12]} Nf6 {[%emt 0:00:07]} 6. Bb5+ {[%emt 0:01:16]} Bd7 {[%emt 0:01:12]} 7. Qe2+ {[%emt 0:02:58]} Be7 {[%emt 0:00:18]} 8. Ne5 {[%emt 0:01:15]} cxd4 {[%emt 0:05:01]} 9. Nxd7 {[%emt 0:00:52]} Nbxd7 {[%emt 0:00:29]} 10. cxd4 {[%emt 0:00:07]} O-O {[%emt 0:01:27]} 11. O-O {[%emt 0:00:04]} a6 {[%emt 0:02:29]} 12. Ba4 {[%emt 0:03:43]} Bd6 {[%emt 0:01:06]} 13. Nc3 {[%emt 0:03:14]} h6 {[%emt 0:01:42]} 14. Bb3 {[%emt 0:01:44]} Nb6 {[%emt 0:02:05]} 15. Qf3 {[%emt 0:03:55]} Rc8 {[%emt 0:00:33]} 16. Re1 {[%emt 0:16:16]} Nc4 {[%emt 0:01:28]} 17. Re2 {[%emt 0:18:40]} b5 {[%emt 0:09:31]} 18. Bc2 {[%emt 0:17:48]} Bb4 {[%emt 0:09:05]} 19. a4 {[%emt 0:00:57]} Bxc3 {[%emt 0:07:15]} 20. Qxc3 {[%emt 0:06:54]} Re8 {[%emt 0:04:13]} 21. Rxe8+ {[%emt 0:00:05]} Qxe8 {[%emt 0:00:09]} 22. Bf5 {[%emt 0:00:06]} b4 {[%emt 0:03:00]} 23. Qd3 {[%emt 0:00:04]} Qe1+ {[%emt 0:01:11]} 24. Qf1 {[%emt 0:00:04]} Re8 {[%emt 0:01:59]} 25. Bf4 {[%emt 0:02:55]} Qxf1+ {[%emt 0:04:46]} 26. Kxf1 {[%emt 0:00:04]} g5 {[%emt 0:08:47]} 27. Be5 {[%emt 0:09:56]} Nxe5 {[%emt 0:02:36]} 28. dxe5 {[%emt 0:00:04]} Rxe5 {[%emt 0:00:06]} 29. Bd3 {[%emt 0:00:03]} a5 {[%emt 0:00:54]} 30. Rc1 {[%emt 0:00:04]} Ne4 {[%emt 0:00:50]} 31. f3 {[%emt 0:01:43]} Nd2+ {[%emt 0:00:27]} 32. Kf2 {[%emt 0:00:02]} Kg7 {[%emt 0:02:40]} 33. Rc6 {[%emt 0:03:12]} Nb3 {[%emt 0:00:43]} 34. Rd6 {[%emt 0:01:22]} Nc5 {[%emt 0:02:37]} 35. Bb5 {[%emt 0:00:09]} f5 {[%emt 0:00:32]} 36. Rc6 {[%emt 0:01:05]} d4 {[%emt 0:02:08]} 37. Rd6 {[%emt 0:00:09]} d3 {[%emt 0:01:22]} 38. Bxd3 {[%emt 0:01:51]} Nxa4 {[%emt 0:00:03]} 39. b3 {[%emt 0:00:04]} Nc3 {[%emt 0:00:44]} 40. Bc4 {[%emt 0:03:57]} h5 {[%emt 0:00:43]} 41. g3 {[%emt 0:00:27]} Re7 {[%emt 0:19:43]} 42. h4 {[%emt 0:01:00]} g4 {[%emt 0:00:00]} 43. Rd8 {[%emt 0:00:05]} Kf6 {[%emt 0:00:00]} 44. f4 {[%emt 0:01:46]} Ne4+ {[%emt 0:00:00]} 45. Kg2 {[%emt 0:00:01]} Rc7 {[%emt 0:00:00]} 46. Rf8+ {[%emt 0:00:35]} Kg6 {[%emt 0:00:00]} 47. Rg8+ {[%emt 0:00:21]} Kh7 {[%emt 0:00:00]} 48. Ra8 {[%emt 0:00:42]} Rc5 {[%emt 0:00:00]} 49. Ra7+ {[%emt 0:00:15]} Kh6 {[%emt 0:00:00]} 50. Ra6+ {[%emt 0:00:05]} Kg7 {[%emt 0:00:00]} 51. Ra7+ {[%emt 0:00:19]} Kf6 {[%emt 0:00:00]} 52. Rf7+ {[%emt 0:00:13]} Kg6 {[%emt 0:00:00]} 53. Ra7 {[%emt 0:00:01]} Nd2 {[%emt 0:00:00]} 54. Ra6+ {[%emt 0:02:07]} Kg7 {[%emt 0:00:00]} 55. Be6 {[%emt 0:00:39]} Kf8 {[%emt 0:00:00]} 56. Ra7 {[%emt 0:00:06]} Ke8 {[%emt 0:00:00]} 57. Bf7+ {[%emt 0:01:02]} Kd8 {[%emt 0:00:00]} 58. Bxh5 {[%emt 0:00:09]} Nxb3 {[%emt 0:00:00]} 59. Bg6 {[%emt 0:00:04]} Nd4 {[%emt 0:00:00]} 60. Kf2 {[%emt 0:01:33]} b3 {[%emt 0:00:00]} 61. Rb7 {[%emt 0:00:07]} Kc8 {[%emt 0:00:00]} 0-1

[Event "14th Chennai GM Open 2023"]
[Site "Chennai"]
[Date "2024.01.05"]
[Round "8.1"]
[White "Nguyen, Duc Hoa"]
[Black "Srihari L R"]
[Result "0-1"]
[ECO "C11"]
[WhiteElo "2322"]
[BlackElo "2467"]
[Annotator "TA"]
[PlyCount "66"]
[EventDate "2023.12.31"]
[EventType "swiss"]
[EventCountry "IND"]
[SourceTitle "playchess.com"]
[Source "ChessBase"]
[SourceQuality "1"]
[TimeControl "5400+30"]

{[%evp 15,66,0,1,-45,-36,-50,1,-186,-208,-208,-188,-194,-200,-207,-200,-197,-191,-182,-194,-368,-382,-388,-403,-395,-368,-368,-367,-355,-245,-270,-265,-347,-284,-297,-252,-291,-295,-358,-362,-360,-268,-263,-257,-381,-379,-435,-442,-483,-486,-554,-554,-782,-769]} 1. e4 {[%emt 0:01:58]} e6 {[%emt 0:00:33]} 2. d4 {[%emt 0:00:12]} d5 {[%emt 0:00:05]} 3. Nc3 {[%emt 0:01:20]} Nf6 {[%emt 0:00:08]} 4. e5 {[%emt 0:00:23]} Nfd7 {[%emt 0:00:05]} 5. f4 {[%emt 0:00:06]} c5 {[%emt 0:00:05]} 6. Nf3 {[%emt 0:00:09]} Nc6 {[%emt 0:00:05]} 7. Ne2 {[%emt 0:00:55]} Be7 {[%emt 0:00:09] is the new trend.} 8. c3 {[%emt 0:01:54]} O-O {[%emt 0:00:15]} 9. Ng3 {[%emt 0:01:06] C11: French: Classical System: 4 e5 and 4 Bg5 dxe4.} (9. g3 $11) 9... Qb6 {[%emt 0:04:49]} 10. Bd3 {[%emt 0:13:21]} f6 {[%emt 0:06:50] [#]} (10... cxd4 $15 11. Nxd4 Nxd4 12. cxd4 f6) 11. Ng5 $146 {[%emt 0:19:24] This move loses the game for White.} ({Predecessor:} 11. O-O cxd4 12. cxd4 fxe5 13. fxe5 Ndxe5 14. Bxh7+ Kxh7 15. Nxe5 Rxf1+ 16. Kxf1 Nxe5 17. Qh5+ {0-1 Dalanhol,J (1891)-Yamamoto,E (2065) Catarinense-ch 2016 (1)}) 11... fxg5 $19 {[%emt 0:10:08]} 12. Qh5 {[%emt 0:00:05] [#]} Rf5 $1 {[%emt 0:03:58]} 13. Bxf5 {[%emt 0:00:50]} exf5 {[%emt 0:01:12]} 14. Nxf5 {[%emt 0:00:04]} g6 {[%emt 0:07:53]} 15. Nxe7+ {[%emt 0:01:28]} Nxe7 {[%emt 0:00:01]} 16. Qxg5 {[%emt 0:09:47]} Nf5 {[%emt 0:00:05]} 17. h4 $2 {[%emt 0:06:39] White is weak on the light squares} ({Reject} 17. g4 h6 18. dxc5 Nxc5 $19) (17. O-O) 17... cxd4 {[%emt 0:00:22]} 18. h5 {[%emt 0:01:16]} Nc5 {[%emt 0:01:14]} ({Worse is} 18... dxc3 19. hxg6 hxg6 20. bxc3 $19) 19. hxg6 {[%emt 0:01:51]} hxg6 {[%emt 0:00:03]} 20. Qf6 {[%emt 0:03:23]} Qxf6 {[%emt 0:01:26]} 21. exf6 {[%emt 0:00:04]} Nd3+ {[%emt 0:04:23]} 22. Kd2 {[%emt 0:00:46]} Nf2 {[%emt 0:00:07]} (22... Nxf4 $2 {perishes.} 23. cxd4 Bd7 24. Kd1 Nxg2 25. Bd2 $19) 23. Rg1 {[%emt 0:02:36]} dxc3+ {[%emt 0:01:32]} 24. bxc3 {[%emt 0:01:38]} Ne4+ {[%emt 0:00:05]} 25. Kd3 {[%emt 0:00:52]} Nxf6 {[%emt 0:00:29] A dynamic duo of knights.} 26. g4 {[%emt 0:00:37]} Nd6 {[%emt 0:00:55]} 27. f5 {[%emt 0:00:20]} gxf5 {[%emt 0:00:34]} 28. Bf4 {[%emt 0:01:18]} Nde4 {[%emt 0:00:54]} 29. g5 {[%emt 0:07:55]} (29. gxf5+ $142 Kf7 30. Bg5) 29... Ng4 {[%emt 0:00:16]} 30. Rab1 {[%emt 0:04:58]} b6 {[%emt 0:00:06] Black is clearly winning.} 31. Kd4 {[%emt 0:00:06]} Be6 {[%emt 0:00:21]} 32. Rb4 {[%emt 0:00:11]} Rc8 {[%emt 0:00:26]} 33. Rc1 {[%emt 0:00:04]} a5 {[%emt 0:01:04] Weighted Error Value: White=0.62/Black=0.16 (very precise)} 0-1

[Event "14th Chennai GM Open 2023"]
[Site "Chennai"]
[Date "2024.01.05"]
[Round "8.2"]
[White "Savchenko, Boris"]
[Black "Glek, Igor"]
[Result "1-0"]
[ECO "D27"]
[WhiteElo "2489"]
[BlackElo "2429"]
[Annotator "TA"]
[PlyCount "95"]
[EventDate "2023.12.31"]
[EventType "swiss"]
[EventCountry "IND"]
[SourceTitle "playchess.com"]
[Source "ChessBase"]
[SourceQuality "1"]
[TimeControl "5400+30"]

{[%evp 29,95,7,8,13,9,0,6,1,12,12,12,16,14,12,12,14,20,7,37,37,38,12,12,0,0,0,0,0,0,0,0,0,0,0,0,0,0,0,11,11,141,64,90,91,116,97,187,187,196,175,196,196,1918,1866,1460,1099,12834,12832,12840,12839,12841,12841,12845,12845,12845,12844,12845,12845]} 1. d4 {[%emt 0:03:30]} d5 {[%emt 0:02:32]} 2. c4 {[%emt 0:05:49]} dxc4 {[%emt 0:00:48]} 3. e3 {[%emt 0:01:17]} Nf6 {[%emt 0:01:36]} 4. Nf3 {[%emt 0:00:26]} e6 {[%emt 0:00:31]} 5. Bxc4 {[%emt 0:00:09]} c5 {[%emt 0:00:04]} 6. O-O {[%emt 0:00:14]} Nc6 {[%emt 0:00:02]} 7. Nc3 {[%emt 0:00:08]} a6 {[%emt 0:00:24]} 8. a4 {[%emt 0:00:07]} Be7 {[%emt 0:00:14]} 9. Qe2 {[%emt 0:31:45]} cxd4 {[%emt 0:00:42]} 10. Rd1 {[%emt 0:09:26]} e5 {[%emt 0:00:41]} 11. exd4 {[%emt 0:00:14]} exd4 {[%emt 0:00:27]} 12. Nxd4 {[%emt 0:00:17]} Nxd4 {[%emt 0:00:09]} 13. Qe5 {[%emt 0:00:09]} Qd6 {[%emt 0:00:11]} 14. Qxd6 {[%emt 0:00:12]} Bxd6 {[%emt 0:00:06]} 15. Rxd4 {[%emt 0:00:05]} Be5 {[%emt 0:01:10]} 16. Rh4 {[%emt 0:18:47] D27: Queen's Gambit Accepted: Classical main line: 7 e4!? and 7 a4.} O-O {[%emt 0:02:21]} 17. Bf4 {[%emt 0:01:23][%cal Bc1f4,Bf4e5,Be5d4,Bd4e3,Be3d2][%mdl 32]} Bxc3 {[%emt 0:43:58]} 18. bxc3 {[%emt 0:00:10] [#] The position is equal.} Be6 $146 {[%emt 0:00:01] Black is weak on the dark squares} ({Predecessor:} 18... Re8 19. Be3 Be6 20. Rb1 Bxc4 21. Rxc4 b5 22. axb5 axb5 23. Rc6 Nd5 24. Bd4 b4 25. cxb4 Nxb4 {½-½ Brunello,S (2498)-Predojevic,B (2592) AUT-chT 2122 2021 (2.2)}) 19. Bxe6 {[%emt 0:05:50]} fxe6 {[%emt 0:00:04]} 20. Be5 {[%emt 0:05:03]} Nd7 {[%emt 0:02:22]} 21. Bd4 {[%emt 0:09:45]} Rac8 {[%emt 0:06:24]} 22. Rb1 {[%emt 0:00:17]} e5 {[%emt 0:03:04]} 23. Be3 {[%emt 0:00:41]} b5 {[%emt 0:00:08]} 24. axb5 {[%emt 0:03:05]} axb5 {[%emt 0:00:17]} 25. Bd2 {[%emt 0:00:13]} Rc4 {[%emt 0:04:53]} 26. Rxc4 {[%emt 0:03:43]} bxc4 $11 {[%emt 0:00:01][%mdl 4096] Endgame KRB-KRN} 27. Rb7 {[%emt 0:00:35]} Rb8 {[%emt 0:02:08]} 28. Rxb8+ {[%emt 0:00:06]} (28. Rxd7 $2 {gets mated.} Rb1+) 28... Nxb8 {[%emt 0:00:01] KB-KN} 29. f4 {[%emt 0:00:54]} Kf7 {[%emt 0:00:02]} 30. Kf2 {[%emt 0:00:34]} Ke6 {[%emt 0:00:19]} 31. Kf3 {[%emt 0:00:07]} Nd7 {[%emt 0:00:22]} 32. Be3 {[%emt 0:00:55]} exf4 {[%emt 0:01:28]} 33. Kxf4 {[%emt 0:00:14]} Ne5 {[%emt 0:21:05]} 34. Ke4 {[%emt 0:00:24] And now Bd4 would win.} Nc6 {[%emt 0:00:30] [#]} (34... Nd3 $1 $11 {remains equal.}) 35. Bf2 {[%emt 0:00:52]} ({White should play} 35. Bf4 $1 $16) 35... h5 {[%emt 0:00:23]} 36. Be3 {[%emt 0:00:30]} g6 {[%emt 0:00:07]} 37. Bf4 {[%emt 0:00:32]} Nd8 {[%emt 0:08:12] [#]} (37... Ne7 $16 {was worth a try.} 38. Kd4 Nd5) 38. Kd4 $1 $18 {[%emt 0:00:14]} Kf5 {[%emt 0:00:06]} 39. Bc1 {[%emt 0:00:37]} Ne6+ {[%emt 0:01:08]} 40. Kxc4 {[%emt 0:00:30] Kd5 would be deadly.} Ke4 {[%emt 0:00:03]} (40... Ke5 41. Kb5 Kd6) 41. h4 {[%emt 0:00:13] White is clearly winning.} Ng7 {[%emt 0:01:17]} 42. Kc5 {[%emt 0:00:28]} Kd3 {[%emt 0:00:30]} 43. c4 {[%emt 0:00:30][%cal Bc3c4,Bc4c5,Bc5c6][%mdl 32]} Ke2 {[%emt 0:00:01]} 44. Kd5 {[%emt 0:00:13]} Kf2 {[%emt 0:00:07]} 45. c5 {[%emt 0:00:10]} Kxg2 {[%emt 0:00:50]} 46. c6 {[%emt 0:00:05]} Ne8 {[%emt 0:00:02]} 47. Ke6 {[%emt 0:00:10]} Kg3 {[%emt 0:00:10]} 48. Bg5 {[%emt 0:00:05] Weighted Error Value: White=0.06 (flawless) /Black=0.22 (precise)} 1-0

[Event "14th Chennai GM Open 2023"]
[Site "Chennai"]
[Date "2024.01.05"]
[Round "8.3"]
[White "Fedorov, Alexei"]
[Black "Abhishek, Kelkar"]
[Result "1/2-1/2"]
[ECO "B23"]
[WhiteElo "2454"]
[BlackElo "2204"]
[Annotator "RC"]
[PlyCount "62"]
[EventDate "2023.12.31"]
[EventType "swiss"]
[EventCountry "IND"]
[SourceTitle "playchess.com"]
[Source "ChessBase"]
[SourceQuality "1"]
[TimeControl "5400+30"]

1. e4 {[%emt 0:00:03]} c5 {[%emt 0:03:02]} 2. Nc3 {[%emt 0:01:37]} Nc6 {[%emt 0:00:48]} 3. Bb5 {[%emt 0:00:04]} e6 {[%emt 0:02:13]} 4. Bxc6 {[%emt 0:01:52]} bxc6 {[%emt 0:01:01]} 5. f4 {[%emt 0:05:01]} c4 {[%emt 0:08:33]} 6. Nf3 {[%emt 0:01:44]} d5 {[%emt 0:00:58]} 7. b3 {[%emt 0:06:21]} Nf6 {[%emt 0:11:37]} 8. Bb2 {[%emt 0:09:51]} Ba6 {[%emt 0:10:54]} 9. e5 {[%emt 0:07:15]} Nd7 {[%emt 0:06:32]} 10. f5 {[%emt 0:15:56]} Nc5 {[%emt 0:12:53]} 11. b4 {[%emt 0:06:08]} Rb8 {[%emt 0:01:27]} 12. bxc5 {[%emt 0:07:36]} Rxb2 {[%emt 0:00:37]} 13. fxe6 {[%emt 0:03:29]} fxe6 {[%emt 0:00:31]} 14. O-O {[%emt 0:00:38]} Bxc5+ {[%emt 0:06:13]} 15. Kh1 {[%emt 0:00:07]} Qe7 {[%emt 0:00:05]} 16. Na4 {[%emt 0:02:01]} c3 {[%emt 0:03:03]} 17. d3 {[%emt 0:00:27]} O-O {[%emt 0:03:31]} 18. Nxb2 {[%emt 0:02:05]} cxb2 {[%emt 0:00:02]} 19. Rb1 {[%emt 0:00:03]} Ba3 {[%emt 0:00:08]} 20. Qd2 {[%emt 0:01:28]} h6 {[%emt 0:01:19]} 21. Qc3 {[%emt 0:03:38]} Bb5 {[%emt 0:02:45]} 22. h3 {[%emt 0:04:47]} Rf4 {[%emt 0:05:34]} 23. Nh2 {[%emt 0:05:21]} Rh4 {[%emt 0:10:54]} 24. Qd2 {[%emt 0:09:24]} Rh5 {[%emt 0:02:46]} 25. Nf3 {[%emt 0:01:11]} Rf5 {[%emt 0:01:13]} 26. c3 {[%emt 0:01:21]} Qf8 {[%emt 0:03:04]} 27. Rf2 {[%emt 0:01:34]} Rf4 {[%emt 0:00:22]} 28. d4 {[%emt 0:00:43]} Qf5 {[%emt 0:00:31]} 29. Rxb2 {[%emt 0:00:07]} Bxb2 {[%emt 0:00:41]} 30. Qxb2 {[%emt 0:00:03]} Qe4 {[%emt 0:00:49]} 31. Qd2 {[%emt 0:01:22]} Rf5 {[%emt 0:00:06]} 1/2-1/2

[Event "14th Chennai GM Open 2023"]
[Site "Chennai"]
[Date "2024.01.05"]
[Round "8.4"]
[White "Aronyak Ghosh"]
[Black "Murugan, Krishnamoorthy"]
[Result "1/2-1/2"]
[ECO "D10"]
[WhiteElo "2545"]
[BlackElo "2238"]
[Annotator "TA"]
[PlyCount "117"]
[EventDate "2023.12.31"]
[EventType "swiss"]
[EventCountry "IND"]
[SourceTitle "playchess.com"]
[Source "ChessBase"]
[SourceQuality "1"]
[TimeControl "5400+30"]

{[%evp 9,117,44,50,47,62,44,86,49,53,49,41,48,49,62,69,66,93,81,93,81,89,68,89,83,99,52,52,50,45,50,54,11,30,9,81,64,83,9,13,0,0,0,0,7,10,10,3,0,-5,-31,-28,-60,-47,-60,-71,-75,-63,-39,-51,-52,-26,-31,-38,-49,0,0,0,0,0,0,0,-66,-18,-13,0,0,27,0,0,0,0,0,0,0,0,0,0,-23,0,0,0,0,8,8,59,0,0,0,0,0,0,0,0,0,0,0,0,0,0,0]} 1. d4 {[%emt 0:02:26]} Nf6 {[%emt 0:00:08]} 2. Bf4 {[%emt 0:00:14]} d5 {[%emt 0:00:29]} 3. e3 {[%emt 0:00:06]} c6 {[%emt 0:03:41]} 4. c4 {[%emt 0:00:25]} Qa5+ {[%emt 0:03:50]} 5. Nc3 {[%emt 0:03:48]} Nbd7 {[%emt 0:11:09]} 6. Nf3 {[%emt 0:02:13] D10: Slav Defence: 3 cxd5 (without early Nf3) and 3 Nc3.} Ne4 {[%emt 0:08:16]} 7. Qc2 {[%emt 0:08:35]} e6 {[%emt 0:05:30]} 8. Bd3 {[%emt 0:07:42] White is better.} Nxc3 {[%emt 0:05:26]} 9. bxc3 {[%emt 0:00:23]} dxc4 {[%emt 0:03:40]} 10. Bxc4 {[%emt 0:00:31]} Nb6 {[%emt 0:00:44]} 11. Bc7 $1 {[%emt 0:04:13]} Qa3 {[%emt 0:00:28]} 12. Bb3 {[%emt 0:08:42] [#] White is much more active. The black rooks are badly placed.} Bd6 $146 {[%emt 0:02:33]} ({Predecessor:} 12... Nd5 13. Bg3 Nxc3 14. O-O Nb5 15. Ne5 Qa6 16. Nxf7 Kxf7 17. Qf5+ Ke8 18. Bxe6 Bxe6 19. Qxe6+ {1-0 Belov,I (2440)-Sopur,L (2355) Karvina op 1992 (5)}) 13. Bxd6 {[%emt 0:03:58]} Qxd6 {[%emt 0:00:08]} 14. a4 {[%emt 0:00:55]} Nd7 {[%emt 0:06:12]} 15. O-O {[%emt 0:00:25]} O-O {[%emt 0:03:33]} 16. e4 {[%emt 0:02:34][%cal Be3e4,Be4e5][%mdl 32]} b6 {[%emt 0:05:55]} 17. Rfe1 {[%emt 0:00:08]} (17. e5 $16 Qe7 18. Qe4) 17... Bb7 $14 {[%emt 0:00:27]} 18. e5 {[%emt 0:01:42]} Qe7 {[%emt 0:00:13]} 19. c4 {[%emt 0:01:38]} Rac8 {[%emt 0:02:57]} 20. Qe4 {[%emt 0:02:31]} Rfd8 {[%emt 0:01:35]} 21. Rad1 {[%emt 0:01:17]} Rc7 {[%emt 0:05:21] [#]} (21... Nf8 $11 {remains equal.}) 22. Qe3 $1 $16 {[%emt 0:01:51]} ({Reject} 22. Bc2 Nf8 $11) 22... Nf8 {[%emt 0:07:38] [#]} 23. c5 {[%emt 0:05:30]} ({White should play} 23. Ng5 $1 $16) 23... Rcd7 $1 $11 {[%emt 0:00:49]} 24. Rd2 {[%emt 0:06:36]} bxc5 {[%emt 0:02:18]} 25. dxc5 {[%emt 0:02:03] Black must now prevent Rd6.} Rxd2 {[%emt 0:00:07]} 26. Nxd2 {[%emt 0:00:03]} Ba6 {[%emt 0:05:55][%cal Bb7a6,Ba6c4,Bc4d5][%mdl 32]} 27. Bc2 {[%emt 0:02:36] Against Rd3} Qd7 {[%emt 0:01:54]} 28. Nf3 {[%emt 0:04:57]} (28. Ne4 {looks sharper.} Qd5 29. Nd6 Nd7 30. Rc1) 28... Bc4 {[%emt 0:00:58]} 29. h4 {[%emt 0:00:58]} Bd5 {[%emt 0:00:20]} 30. Nh2 {[%emt 0:03:52]} Qe7 {[%emt 0:00:20]} 31. h5 {[%emt 0:02:45]} Qh4 {[%emt 0:00:44]} 32. h6 {[%emt 0:00:23][%mdl 64] Deflection} Qxh6 {[%emt 0:00:42]} (32... Ng6 {is more complex.} 33. hxg7 Kxg7 34. a5 Rb8) 33. Qxh6 {[%emt 0:00:05]} gxh6 {[%emt 0:00:04]} 34. Ng4 {[%emt 0:00:24]} Nd7 {[%emt 0:03:27]} 35. Nf6+ {[%emt 0:00:33]} Kg7 {[%emt 0:04:34]} 36. Re3 {[%emt 0:00:43]} Nxf6 {[%emt 0:00:28]} (36... Nxc5 $15 37. Rg3+ Kf8) 37. Rg3+ {[%emt 0:00:03]} Ng4 $1 {[%emt 0:00:34]} 38. Rxg4+ {[%emt 0:00:02][%mdl 4096] Endgame KRB-KRB} Kh8 {[%emt 0:00:23]} 39. Rf4 $1 {[%emt 0:01:06]} Kg7 {[%emt 0:00:38]} 40. Rb4 {[%emt 0:00:03]} (40. Rg4+ $11 Kh8 41. Rf4) 40... Rd7 {[%emt 0:00:21]} (40... a5 $15 {is more appropriate.} 41. Rb6 Bc4 42. Rxc6 Rd5) 41. a5 {[%emt 0:01:57]} h5 {[%emt 0:03:28] Prevents Rg4+} 42. a6 {[%emt 0:00:25] Rb7 is the strong threat.} Rd8 {[%emt 0:02:08]} (42... Ba2 $5 {[%cal Rd7d2]}) 43. Rb7 {[%emt 0:00:45]} Bc4 $1 {[%emt 0:00:42]} ({Much less strong is} 43... Ra8 44. Bd3 $16) 44. Rxa7 {[%emt 0:00:32] And now Be4 would win.} Rd5 $1 {[%emt 0:01:09][%csl LRc5,LRe5]} 45. f4 {[%emt 0:01:39]} Rxc5 {[%emt 0:00:26][%cal Oc4a6]} 46. Bd1 {[%emt 0:00:06]} Kg6 {[%emt 0:00:17][%cal Oc4a6]} 47. Bf3 {[%emt 0:06:20]} Bd5 {[%emt 0:00:15]} 48. Be2 {[%emt 0:00:39]} Rc1+ {[%emt 0:00:18]} 49. Kf2 {[%emt 0:00:19]} c5 {[%emt 0:00:14]} 50. Bd3+ {[%emt 0:04:42]} Kg7 {[%emt 0:00:09]} 51. f5 {[%emt 0:00:04] Threatens to win with f6+.} exf5 {[%emt 0:01:19]} (51... c4 $1 $11 52. Be2 Ra1) 52. Bxf5 {[%emt 0:00:02]} (52. Rd7 $1 $14 Be6 53. a7) 52... Kh6 {[%emt 0:00:19] The position is equal.} (52... Ra1 $2 53. e6 Kf6 54. e7 (54. Rxf7+ Ke5 $11) 54... Ra2+ 55. Ke1 Ra1+ 56. Kd2 Ra2+ 57. Bc2 $18) 53. Rd7 {[%emt 0:00:02]} Kg5 {[%emt 0:00:39]} 54. Bxh7 {[%emt 0:05:02]} Be6 {[%emt 0:00:08]} 55. Rc7 {[%emt 0:00:07] Strongly threatening Be4.} (55. a7 $5 Ra1 $8 56. Rc7 $11) 55... Ra1 {[%emt 0:00:18]} 56. a7 {[%emt 0:00:31] Be4 would be deadly.} Kf4 {[%emt 0:00:26] Dodges Be4} 57. g3+ {[%emt 0:01:24]} Kxe5 {[%emt 0:00:09] aiming for ...Kd6.} 58. Rxc5+ {[%emt 0:00:07]} Kd6 {[%emt 0:00:05]} 59. Rxh5 {[%emt 0:01:04] Weighted Error Value: White=0.13 (very precise) /Black=0.10 (very precise)} 1/2-1/2